Cogmind - Beta 16 --- EXPLORER MODE // 2026.01.28 @ 14:51:40 Player: K.K.Y. Result: Destroyed by S-43 Plague with Heavy Machine Gun Performance ------------- Evolutions (7) 3500 Regions Visited (18) 3600 Robots Destroyed (456) 2280 Value Destroyed (22310) 22310 Prototype IDs (64) 1280 Alien Tech Used (2) 400 Bonus (2434) 2434 TOTAL SCORE: 35804 Bonus ------- High Alert Combat Kills 144 Follower Combat Kills 428 Delivered SUBCON Basin 2000 Met Data Miner 300 Friendly Fire -438 Cogmind --------- Core Integrity 0/1300 Matter 289/300 Energy 22/100 System Corruption 3% Temperature Cool (0) Movement Core (50) Location -3/Research Parts ------- > --- POWER (2) -------- (None) > --- PROPULSION (6) --- (None) > --- UTILITY (11) ----- Machine Analyzer Advanced Target Analyzer Advanced Component Analysis Suite Tech Extrapolator > --- WEAPON (3) ------- (None) > --- INVENTORY (5) ---- Reinforced Fission Core Huge Storage Unit Heart of Steel Peak State ------------ > --- POWER ------------ Light Antimatter Reactor Heavy Antimatter Reactor > --- PROPULSION ------- Thunder Leg Myomer Leg Shield Leg Advanced Myomer Leg Advanced Myomer Leg Advanced Myomer Leg > --- UTILITY ---------- Advanced Power Amplifier Advanced Cryofiber Web Advanced Cooling System Experimental Cooling System Huge Storage Unit Improved Trap Scanner Improved Weapon Cycler Graphene Brace Advanced Thermal Shield Advanced Component Analysis Suite Advanced Corruption Screen > --- WEAPON ----------- Advanced Variable Charge Gun Heavy Neutron Cannon Advanced Remote Datajack > --- INVENTORY -------- Reinforced Deuterium Engine Reinforced Fission Core Improved Heavy Siege Treads Machine Analyzer Triangulator Long-range Terrain Scanner 0b10 Decoder Chip [Skirmisher] Heavy Servo Lattice Advanced Transmission Jammer EM Disruption Field Improved Component Analysis Suite Tech Extrapolator Advanced Corruption Screen Advanced System Restoration Module Advanced System Restoration Module Long-range Tractor Beam Heart of Steel Dispersion Rifle Quantum Rifle HERF Cannon Cooled Particle Cannon Advanced Datajack [Rating: 169] Favorites ----------- Power Light Nuclear Core Engine Angular Momentum Engine Power Core Light Nuclear Core Reactor Particle Reactor Propulsion Improved Medium Treads Treads Improved Medium Treads Leg Advanced Myomer Leg Utility Huge Storage Unit Device Advanced Heat Sink Storage Huge Storage Unit Processor Improved Corruption Screen Hackware Makeshift System Shield Protection Improved Medium Armor Plating Weapon Improved Lightning Gun Energy Gun Improved Lightning Gun Energy Cannon Cooled Particle Cannon Ballistic Gun Barrage Gun Ballistic Cannon Antimatter Cannon Special Weapon Advanced Remote Datajack Impact Weapon Impact Mace Build | -11 -10 -10 -10 -9 -9 -6 -6 -6 -6 -6 -5 -5 -5 -5 -5 -4 -4 -3 ------- Run | Yrd Mat Min Sub Rec Scr Fac Was Fac Low Dat Pro Fac Upp Upp Zhi Pro Fac Res Slots Evolved 15 | . 1 . . . . 8 . . . . . 2 . . . . 2 2 Power 1 | . . . . . . 1 . . . . . . . . . . . . Propulsion 4 | . . . . . . 4 . . . . . . . . . . . . Utility 9 | . 1 . . . . 3 . . . . . 2 . . . . 2 1 Weapon 1 | . . . . . . . . . . . . . . . . . . 1 Parts Attached 293 | 6 7 8 9 1 . 33 2 74 3 . 7 19 14 7 9 11 31 52 Power 53 | 1 2 1 1 . . 6 . 14 . . . 2 5 2 1 3 4 11 Engine 15 | 1 2 . . . . 2 . 6 . . . . 3 . . . . 1 Core 17 | . . 1 1 . . 4 . 6 . . . 1 . 2 . 1 . 1 Reactor 21 | . . . . . . . . 2 . . . 1 2 . 1 2 4 9 Propulsion 61 | 2 . 4 2 . . 5 . 13 . . 3 6 1 1 3 1 9 11 Treads 37 | 2 . 2 2 . . 5 . 13 . . 3 5 1 1 . . 1 2 Leg 24 | . . 2 . . . . . . . . . 1 . . 3 1 8 9 Wheel . | . . . . . . . . . . . . . . . . . . . Hover . | . . . . . . . . . . . . . . . . . . . Flight . | . . . . . . . . . . . . . . . . . . . Utility 118 | 1 3 2 2 1 . 14 1 32 3 . 4 8 6 . 5 5 13 18 Device 74 | . 3 1 1 . . 9 . 17 2 . 4 5 4 . 2 3 10 13 Storage 8 | 1 . 1 1 1 . 1 . 1 1 . . . . . . . 1 . Processor 13 | . . . . . . 1 . 5 . . . 1 1 . 1 . . 4 Hackware 5 | . . . . . . . 1 2 . . . . . . 1 . 1 . Protection 18 | . . . . . . 3 . 7 . . . 2 1 . 1 2 1 1 Artifact . | . . . . . . . . . . . . . . . . . . . Weapon 61 | 2 2 1 4 . . 8 1 15 . . . 3 2 4 . 2 5 12 Energy Gun 27 | 2 1 1 . . . 5 . 5 . . . 1 2 . . 2 2 6 Energy Cannon 14 | . . . . . . 2 . 3 . . . 2 . 2 . . 2 3 Ballistic Gun 9 | . . . 2 . . . 1 3 . . . . . 1 . . . 2 Ballistic Cannon 8 | . . . 2 . . 1 . 3 . . . . . 1 . . 1 . Launcher . | . . . . . . . . . . . . . . . . . . . Special Weapon 2 | . 1 . . . . . . . . . . . . . . . . 1 Impact Weapon 1 | . . . . . . . . 1 . . . . . . . . . . Slashing Weapon . | . . . . . . . . . . . . . . . . . . . Piercing Weapon . | . . . . . . . . . . . . . . . . . . . Special Melee Weapon . | . . . . . . . . . . . . . . . . . . . Unidentified Prototypes 31 | . . . . . . 6 1 10 . . 1 2 . . 6 . 2 3 Corrupted Parts 1 | . . . . . . . . . . . . . . . . . . 1 System Corruption 1 | . . . . . . . . . . . . . . . . . . 1 Parts Lost 137 | . 3 2 4 . . 2 7 23 . . 1 4 9 14 . 8 11 49 Power 13 | . . . 1 . . . 1 3 . . . . 2 2 . . . 4 Propulsion 40 | . . 1 . . . 1 2 8 . . 1 1 3 2 . 2 4 15 Utility 54 | . 2 . 1 . . 1 3 8 . . . 3 2 6 . 4 5 19 Weapon 30 | . 1 1 2 . . . 1 4 . . . . 2 4 . 2 2 11 Highest Loss Streak 15 | . 2 1 1 . . 1 7 4 . . 1 2 3 7 . 2 2 15 To Critical Strikes 2 | . . . . . . . . . . . . . . . . 2 . . Average Backups 19 | 1 4 9 13 11 20 24 16 18 24 23 22 22 22 22 23 22 22 20 Power 1 | . . 3 2 1 1 2 . . . . . . . . 1 2 3 2 Propulsion . | . . . . . . . . . . . . . . . . . . . Utility 11 | . 2 4 6 7 12 14 12 11 13 12 12 11 12 13 15 15 13 12 Weapon 5 | . 1 1 2 2 5 7 3 6 10 10 9 9 9 8 6 4 4 1 Tool/Special . | . . . . . . . . . . . . . . . . . . . Unused Backups 77 | . . 1 6 1 . 19 16 9 1 . 1 3 . . . 1 5 14 Power 9 | . . . 2 . . 2 1 1 . . . 1 . . . . 1 1 Propulsion 3 | . . 1 1 . . . . 1 . . . . . . . . . . Utility 41 | . . . 2 1 . 8 10 4 . . . 2 . . . . 3 11 Weapon 21 | . . . 1 . . 9 4 3 1 . 1 . . . . 1 1 . Tool/Special 3 | . . . . . . . 1 . . . . . . . . . . 2 Average Slot Usage (%) 82 | . 83 80 90 87 87 86 60 78 87 87 86 85 81 59 51 82 93 78 Engine 2 | . 10 11 . . . . . 4 6 6 6 2 . . . . . . Core 4 | . . 1 9 12 12 11 6 4 . . . 2 . . 9 . . . Reactor 4 | . . . . . . . . 2 6 6 6 5 10 8 1 9 9 7 Treads 18 | . 24 15 25 25 25 31 19 20 25 25 23 21 15 8 5 1 2 . Leg 3 | . . . . . . . . . . . . . . . 4 17 22 16 Device 17 | . 11 22 17 . . 12 13 12 24 25 30 26 31 20 3 15 30 28 Storage 9 | . 12 12 13 25 25 7 3 4 6 6 6 5 5 5 5 5 5 3 Processor 3 | . . . . . . 4 3 3 . . . 2 5 5 6 11 5 5 Hackware 1 | . . . . . . . 2 7 . . . . . . 1 2 3 . Protection 2 | . . . . . . 5 3 4 6 6 . 6 . . 1 5 3 . Energy Gun 4 | . 23 15 . . . 1 . 6 6 6 6 3 5 7 . 3 2 4 Energy Cannon 2 | . . . . . . 5 3 2 6 6 6 6 5 . . . 3 3 Ballistic Gun 5 | . . . 7 25 25 1 1 1 . . . . . 1 5 1 . 1 Ballistic Cannon 2 | . . . 13 . . 2 3 . . . . . . 1 5 5 4 . Peak Build Rating 169 | 6 9 17 36 36 24 85 84 90 97 97 106 121 121 91 104 118 151 169 Average Rating 72 | 5 7 10 18 25 22 67 56 72 95 97 104 113 102 72 61 103 142 131 On Entrance 63 | . 6 8 15 36 20 24 84 30 90 97 97 106 121 91 44 104 103 137 Avg Prop Armor Cover (%) 8 | . . 14 . . . 4 . 4 . . . . 17 . 7 6 12 5 Naked Turns . | . . . . . . . . . . . . . . . . . . . Heaviest Build 169 | 19 21 33 71 131 131 163 119 130 127 127 127 147 151 135 126 142 147 169 Greatest Support 210 | 40 40 40 40 40 40 177 177 200 200 200 210 210 199 54 90 110 165 163 Greatest Overweight (x) 36 | . 6 9 1 3 3 3 . 36 . . . 1 2 31 4 1 1 6 Average Overweight (x) . | . . . . 2 3 . . . . . . . 1 2 2 1 . . Largest Inventory Capacity 25 | 10 10 15 25 25 25 25 25 25 25 25 25 25 25 25 25 25 25 25 Average Capacity 22 | 9 10 13 15 25 25 24 15 20 25 25 25 25 25 25 25 25 25 24 Most Carried 25 | 5 10 15 25 25 24 25 25 25 25 25 25 25 25 25 25 25 25 25 Average Carried 20 | . 4 9 15 16 20 24 15 18 24 25 24 24 24 24 25 24 24 23 Final Capacity 25 | 10 10 15 25 25 25 25 5 25 25 25 25 25 25 25 25 25 25 5 Final Carried 25 | 2 5 15 25 14 24 25 5 25 25 25 25 25 25 25 25 25 25 5 Class Distribution -------------------- 85% | Hacker-Mutant 5% | Scavenger-Mutant 4% | Derelict-Mutant Dominant Class ---------------- Hacker-Mutant | -10/Materials Hacker-Mutant | -10/Mines Derelict-Mutant | -10/Subcaves Hacker-Mutant | -9/Recycling Hacker-Mutant | -9/Scraptown Hacker-Mutant | -6/Factory Hacker-Mutant | -6/Waste Hacker-Mutant | -6/Factory Hacker-Mutant | -6/Lower Caves Hacker-Mutant | -6/Data Miner Hacker-Mutant | -5/Proximity Caves Hacker-Mutant | -5/Factory Scavenger-Mutant | -5/Upper Caves Hacker-Mutant | -5/Upper Caves Hacker-Mutant | -5/Zhirov Hacker-Mutant | -4/Proximity Caves Hacker-Mutant | -4/Factory Scavenger-Tank | -3/Research Resources | -11 -10 -10 -10 -9 -9 -6 -6 -6 -6 -6 -5 -5 -5 -5 -5 -4 -4 -3 ----------- Run | Yrd Mat Min Sub Rec Scr Fac Was Fac Low Dat Pro Fac Upp Upp Zhi Pro Fac Res Matter Collected 7361 | 260 155 80 872 80 . 659 12 1713 40 . 75 225 140 97 165 490 1431 867 Remotely 131 | . . . . . . . . . . . . . . . . . . 131 Salvage Created 20269 | 274 801 413 270 49 . 2421 . 4758 36 . 716 1887 1310 814 357 512 2307 3344 Parts 871 | 27 46 23 27 2 . 100 . 197 2 . 32 69 57 29 2 26 95 137 Haulers Intercepted 5 | . 2 . . . . 1 . 2 . . . . . . . . . . Recyclers Shooed 8 | . 1 . . . . . . 5 . . . . . . . . 1 1 Parts Field Recycled . | . . . . . . . . . . . . . . . . . . . Retrieved Matter . | . . . . . . . . . . . . . . . . . . . Parts Self-Destructed . | . . . . . . . . . . . . . . . . . . . Prevented . | . . . . . . . . . . . . . . . . . . . Parts Restored . | . . . . . . . . . . . . . . . . . . . Kills | -11 -10 -10 -10 -9 -9 -6 -6 -6 -6 -6 -5 -5 -5 -5 -5 -4 -4 -3 ------- Run | Yrd Mat Min Sub Rec Scr Fac Was Fac Low Dat Pro Fac Upp Upp Zhi Pro Fac Res Combat Hostiles Destroyed 377 | . 14 7 15 1 . 47 . 78 1 . 14 34 27 14 . 21 59 45 Melee 2 | . . . . . . . . 1 . . . 1 . . . . . . Guns 133 | . 10 7 4 1 . 6 . 42 1 . 7 11 3 5 . 8 4 24 Cannons 215 | . . . 11 . . 37 . 35 . . 6 19 23 4 . 13 54 13 AOE 10 | . 3 . . . . 2 . . . . . . . 2 . . 1 2 Classes Destroyed 20 | 3 5 . 4 1 . 1 . 5 . . . . . 1 . . . . Worker 11 | 1 1 . . . . . . 4 . . . . . . . . 3 2 Builder 7 | . 2 . . . . 1 . . . . . 2 . . . . 1 1 Tunneler 9 | 9 . . . . . . . . . . . . . . . . . . Hauler 5 | . 2 . . . . 1 . 2 . . . . . . . . . . Recycler 10 | 1 1 . . . . 1 . 4 . . . . . . . . 3 . Mechanic 2 | . . . . . . 1 . 1 . . . . . . . . . . Operator 7 | . . . . . . . . 3 . . . . . . . . 2 2 Turret 2 | . . . 2 . . . . . . . . . . . . . . . Watcher 24 | . 2 . . . . 7 . 6 . . . 4 . . . . 4 1 Swarmer 53 | . 2 1 4 . . 10 . 4 . . 2 3 10 3 . 10 4 . Grunt 148 | . 12 6 . . . 25 . 37 . . 5 13 12 6 . 4 22 6 Brawler 10 | . . . . . . . . 3 . . 1 1 2 1 . . . 2 Duelist 7 | . . . . . . . . 2 . . 4 . . . . 1 . . Sentry 41 | . . . 1 . . 7 . 12 . . 1 4 2 1 . 1 6 6 Hunter 38 | . . . . . . . . 7 1 . . 4 . . . 4 11 11 Programmer 64 | . . . . 1 . 5 . 12 . . . 9 . 2 . . 16 19 Behemoth 6 | . . . . . . . . 1 . . 1 . 1 1 . 1 . 1 Artisan 1 | . . . 1 . . . . . . . . . . . . . . . Subdweller 10 | . . . 10 . . . . . . . . . . . . . . . Samaritan 1 | . . . . . . . . . . . . . . 1 . . . . Thug 2 | . . 2 . . . . . . . . . . . . . . . . Best Kill Streak 8 | 4 4 2 6 1 . 7 . 6 1 . 7 4 4 3 . 4 8 6 Combat Bots Only 7 | . 2 2 4 1 . 7 . 6 1 . 7 4 4 3 . 4 6 5 Max Kills in Single Turn 3 | 2 2 1 1 1 . 2 . 2 1 . 2 2 1 2 . 1 3 1 Gunslinging . | . . . . . . . . . . . . . . . . . . . Exploded 2 | . 2 . . . . 2 . . . . . . . 1 . . 1 1 Melee 1 | . . . . . . . . 1 . . . 1 . . . . . . Uniques/NPCs Destroyed . | . . . . . . . . . . . . . . . . . . . Combat | -11 -10 -10 -10 -9 -9 -6 -6 -6 -6 -6 -5 -5 -5 -5 -5 -4 -4 -3 -------- Run | Yrd Mat Min Sub Rec Scr Fac Was Fac Low Dat Pro Fac Upp Upp Zhi Pro Fac Res Hostile Shots Fired 3891 | . 56 29 105 17 . 342 12 928 6 . 91 246 286 144 . 219 493 917 Missed 1279 | . 19 4 40 3 . 121 . 314 1 . 25 56 71 44 . 82 180 319 Deflected 2 | . . . . . . . . . . . . . . . . . 2 . Hits 2612 | . 37 25 65 14 . 221 12 614 5 . 66 190 215 100 . 137 313 598 Melee 28 | . . . . . . . 12 10 . . . 1 3 . . 1 . 1 Projectile 2584 | . 37 25 65 14 . 221 . 604 5 . 66 189 212 100 . 136 313 597 AOE 9 | . . . . 5 . 1 . 2 . . . . . . . . . 1 Critical Strikes 113 | . 1 1 . . . 12 6 21 . . 3 9 5 2 . 4 17 32 Actively Blocked 49 | . . . . . . . . . . . . . . . . . 17 32 Part Disruptions 8 | . . . . . . . . 1 . . . . . . . . 1 6 Damage Taken 28982 | . 365 211 575 212 . 1338 388 5397 58 . 782 2137 2765 1363 . 1654 3613 8124 Core 3285 | . 46 49 83 34 . 92 101 465 . . 60 139 155 324 . 186 248 1303 Absorbed by Shields 895 | . . . . . . 764 . . . . . . . . . . . 131 Redirected to Shielding 155 | . . . . . . . . . . . . . . . . 155 . . Ignored by Resistances 18899 | . 226 130 365 129 . 1282 215 3574 36 . 487 1628 1626 926 . 993 2343 4939 Regen/Repaired (Parts) 1461 | . . . . . . . . 366 . . . 547 . . . . 406 142 Core Remaining (%) 44 | 100 . . . . 15 . . . . . 15 . . . . 16 78 . Volleys Fired 1400 | 14 39 30 105 10 . 124 3 279 3 . 50 114 73 53 10 81 196 216 Largest 3 | 2 2 2 2 2 . 2 2 2 2 . 2 2 2 2 2 2 2 3 Hottest 350 | 80 140 130 165 51 . 190 133 150 105 . 105 315 180 120 68 93 240 350 Shots Fired 2583 | 28 75 40 178 20 . 216 5 509 6 . 82 204 142 94 20 159 379 426 Gun 1198 | 28 74 40 35 20 . 67 . 314 3 . 32 69 30 67 10 78 60 271 Cannon 1378 | . . . 137 . . 149 5 195 3 . 50 135 112 27 10 81 319 155 Launcher . | . . . . . . . . . . . . . . . . . . . Special 7 | . 1 . 6 . . . . . . . . . . . . . . . Kinetic 828 | . . . 165 20 . 52 3 170 . . . . . 12 20 124 176 86 Thermal 1359 | . 19 33 13 . . 105 2 270 6 . 82 204 112 20 . . 203 290 Explosive . | . . . . . . . . . . . . . . . . . . . Electromagnetic 396 | 28 56 7 . . . 59 . 69 . . . . 30 62 . 35 . 50 Robot Hit Streak 87 | 16 32 19 46 29 . 31 4 52 15 . 34 47 47 74 87 31 20 28 Robot Miss Streak 4 | 1 3 1 2 . . 3 1 3 1 . 2 4 2 1 1 2 2 4 Penetration Max 2 | . . . . . . . . 1 . . . . . . 1 1 . 2 Secondary Targets 6 | . . . . . . . . 2 . . . . 1 1 . . . 2 Max Gunslinging Chain 1 | . . . . . . . . 1 . . . . 1 1 . . . 1 Shots Hit Robots 2086 | 19 61 36 88 19 . 185 4 426 5 . 65 174 108 87 14 135 304 356 Core Hits 1057 | 11 28 17 25 5 . 126 2 278 7 . 65 120 48 28 10 44 121 122 Critical Kills 9 | . . . . . . . . 2 . . 1 2 . . . . . 4 Critical Parts Destroyed 6 | . . . . . . . . . . . . . . . . 2 . 4 Critical Strikes 58 | . 1 2 9 . . 2 . 10 . . 1 2 . 1 . 12 9 9 Burn 7 | . 1 2 . . . . . 4 . . . . . . . . . . Meltdown 3 | . . . . . . . . . . . 1 2 . . . . . . Destroy 13 | . . . . . . . . 2 . . . . . . . 2 . 9 Blast 32 | . . . 9 . . 2 . 3 . . . . . . . 9 9 . Corrupt 3 | . . . . . . . . 1 . . . . . 1 . 1 . . Melee Attacks . | . . . . . . . . . . . . . . . . . . . Impact . | . . . . . . . . . . . . . . . . . . . Slashing . | . . . . . . . . . . . . . . . . . . . Piercing . | . . . . . . . . . . . . . . . . . . . Sneak Attacks . | . . . . . . . . . . . . . . . . . . . Combat Hostiles . | . . . . . . . . . . . . . . . . . . . Follow-up Attacks . | . . . . . . . . . . . . . . . . . . . Damage Inflicted 63318 | 359 1097 558 1605 327 . 6544 226 10923 155 . 1853 5658 3521 2108 481 3810 12981 11112 Guns 23609 | 259 862 558 294 327 . 887 . 5859 102 . 815 1838 506 1149 277 1549 1402 6925 Cannons 37065 | . . . 1311 . . 5394 226 5028 53 . 1038 3737 3015 751 204 2261 10131 3916 Explosions 2572 | 100 232 . . . . 263 . 17 . . . 57 . 208 . . 1448 247 Melee . | . . . . . . . . . . . . . . . . . . . Ramming 72 | . 3 . . . . . . 19 . . . 26 . . . . . 24 Kinetic 17521 | . . . 1528 327 . 1067 104 3533 . . . . . 310 481 3183 4939 2049 Thermal 39591 | 100 458 460 77 . . 4673 122 6084 155 . 1853 5620 3015 719 . . 8042 8213 Explosive . | . . . . . . . . . . . . . . . . . . . Electromagnetic 6134 | 259 636 98 . . . 804 . 1287 . . . 12 506 1079 . 627 . 826 Impact . | . . . . . . . . . . . . . . . . . . . Slashing . | . . . . . . . . . . . . . . . . . . . Piercing . | . . . . . . . . . . . . . . . . . . . Highest Corruption 8 | . . . . . . 3 4 4 . . . 4 . . . . . 8 Average Corruption 2 | . . . . . . 2 2 2 . . . 1 . . . . . 3 Corruption Purged 34 | . . . . . . 8 . 12 . . . 7 . . . . . 7 Corruption Blocked 21 | . . . . . . . . . . . . . . 1 . . 4 16 Effects 91 | . . . . . . 7 1 69 . . . 1 . . . . . 13 Message Errors 18 | . . . . . . . 1 13 . . . . . . . . . 4 Matter Fused 15 | . . . . . . 1 . 12 . . . . . . . . . 2 Heat Flow Errors 14 | . . . . . . 2 . 9 . . . 1 . . . . . 2 Energy Discharges 13 | . . . . . . 1 . 9 . . . . . . . . . 3 Parts Rejected 1 | . . . . . . . . 1 . . . . . . . . . . Parts Fused 1 | . . . . . . . . 1 . . . . . . . . . . Data Loss (minor) 14 | . . . . . . 1 . 12 . . . . . . . . . 1 Data Loss (major) 4 | . . . . . . 1 . 3 . . . . . . . . . . Misfires 4 | . . . . . . . . 3 . . . . . . . . . 1 Weapon Failures 7 | . . . . . . 1 . 6 . . . . . . . . . . Overload Shots 8 | . . . . . . . . . . . . 1 . . . . 2 5 Overflow Damage 1001 | 7 31 . 23 . . 51 . 36 . . . 54 10 . 27 37 527 198 Projectiles 785 | . . . 23 . . 51 . 36 . . . 54 10 . 27 37 407 140 Explosions 216 | 7 31 . . . . . . . . . . . . . . . 120 58 Melee . | . . . . . . . . . . . . . . . . . . . Knockbacks 103 | . . . 12 . . 12 . 20 . . . . . . . 18 41 . Impact . | . . . . . . . . . . . . . . . . . . . Kinetic 91 | . . . 12 . . 10 . 17 . . . . . . . 17 35 . Secondary 12 | . . . . . . 2 . 3 . . . . . . . 1 6 . Self-Inflicted Damage 370 | . 49 . . . . 39 . 45 . . . 12 . . . . 190 35 Shots 12 | . 2 . . . . 1 . 3 . . . 1 . . . . 4 1 Rammed 5 | . 1 . . . . . . 2 . . . 1 . . . . . 1 Targets Rammed 8 | . 1 . . . . . . 3 . . . 2 . . . . . 2 Kicked 1 | . . . . . . . . . . . . . . . . . . 1 Crushed 2 | . . . . . . . . 1 . . . 1 . . . . . . Highest Temperature 516 | 72 199 222 . 37 . 378 18 516 . . . 246 434 203 . 10 43 254 Average Temperature 100 | 22 53 96 . 12 . 113 10 113 . . . 76 139 112 . 7 43 74 Received Heat Transfer 8818 | . 252 180 267 36 . 843 . 2739 . . 351 796 1278 597 . 174 705 600 Effects 24 | . . 1 . . . 5 . 13 . . . 2 3 . . . . . Shutdowns 8 | . . . . . . 2 . 4 . . . . 2 . . . . . Energy Bleed 6 | . . 1 . . . 2 . 2 . . . . 1 . . . . . Interference 3 | . . . . . . . . 1 . . . 2 . . . . . . Short Circuit 1 | . . . . . . 1 . . . . . . . . . . . . Damage (minor) 2 | . . . . . . . . 2 . . . . . . . . . . Damage (major) 4 | . . . . . . . . 4 . . . . . . . . . . Siege Activations . | . . . . . . . . . . . . . . . . . . . Martial Activations . | . . . . . . . . . . . . . . . . . . . Shielding Activations 1 | . . . . . . . . . . . . . . . . . 1 . Total Turns 25 | . . . . . . . . . . . . . . . . . 25 . Longest Duration 25 | . . . . . . . . . . . . . . . . . 25 . Robots Disrupted 4 | . . . . . . . . 2 . . . 1 . . . . 1 . Combat Hostiles 4 | . . . . . . . . 2 . . . 1 . . . . 1 . Robots Corrupted 10 | . 1 . . . . 2 . . . . . . 1 4 . . . 2 Combat Hostiles 9 | . 1 . . . . 2 . . . . . . 1 3 . . . 2 Parts Fried 25 | 2 2 . . . . 2 . 1 . . . . 1 9 . 1 . 7 Impact Corruptions . | . . . . . . . . . . . . . . . . . . . Robots Melted 8 | . . . . . . . . . . . 1 3 . . . . . 4 Combat Hostiles 8 | . . . . . . . . . . . 1 3 . . . . . 4 Parts Melted 81 | 1 . . 2 . . 9 . 21 1 . 2 8 1 . . . 3 33 Heat Transferred 38120 | 100 779 1221 185 . . 5293 150 9052 154 . 2091 5261 1776 716 . . 2902 8440 Parts Sabotaged . | . . . . . . . . . . . . . . . . . . . Parts Stolen . | . . . . . . . . . . . . . . . . . . . Parts Stripped . | . . . . . . . . . . . . . . . . . . . Power Chain Reactions 16 | 2 4 . . . . 2 . . . . . 1 . 2 . . 3 2 Alert | -11 -10 -10 -10 -9 -9 -6 -6 -6 -6 -6 -5 -5 -5 -5 -5 -4 -4 -3 ------- Run | Yrd Mat Min Sub Rec Scr Fac Was Fac Low Dat Pro Fac Upp Upp Zhi Pro Fac Res Maximum Alert Level 2 | . . . . . . . . . . . . . . . . . 2 . Low Security (%) 95 | 100 100 100 . 100 . 100 100 100 . . . 100 . . . . 59 100 Level 1 3 | . . . . . . . . . . . . . . . . . 31 . Level 2 . | . . . . . . . . . . . . . . . . . 8 . Level 3 . | . . . . . . . . . . . . . . . . . . . Level 4 . | . . . . . . . . . . . . . . . . . . . Level 5 . | . . . . . . . . . . . . . . . . . . . High Security . | . . . . . . . . . . . . . . . . . . . Max Security . | . . . . . . . . . . . . . . . . . . . Peak Influence 493 | 20 154 55 . 20 . 145 1 132 . . . 82 . . . . 493 113 Initial 5 | . 2 . . . . . 1 . . . . . . . . . . 5 Average 30 | 1 30 4 . . . 17 . 12 . . . 18 . . . . 158 18 Influence Increases 11525 | 55 472 262 231 81 . 1533 . 2384 30 . 370 1078 665 350 15 630 1985 1384 Destroy 0b10 Robot/C 7580 | . 280 200 140 60 . 960 . 1560 20 . 320 720 540 280 . 420 1180 900 Destroy 0b10 Robot/NC 410 | 55 40 . . 10 . 55 . 105 . . . 30 . 5 15 . 65 30 Destroy Leader 1750 | . 78 40 . . . 266 . 468 10 . 30 188 50 50 . 60 278 232 Allied During Kill 14 | . . 7 1 . . . . . . . 5 1 . . . . . . Trap Triggered on 0b10 10 | . . . . . . 10 . . . . . . . . . . . . Successful Hack 407 | . 33 . . 11 . 91 . 97 . . . 40 . . . . 58 77 Disable Machine 128 | . 12 . . . . 4 . 44 . . . 12 . . . . 52 4 Destroy Structure 446 | . 14 . . . . 27 . 35 . . . 42 . . . . 292 36 Partial Spotted 45 | . . 15 . . . . . . . . . . . . . . 15 15 Lose Combat Pursuer 735 | . 15 . 90 . . 120 . 75 . . 15 45 75 15 . 150 45 90 Influence Decreases 11525 | 50 477 262 231 81 . 1525 8 2384 30 . 370 1055 688 350 15 630 1970 1399 Entered New Map 33 | . 3 . . . . . 7 . . . . . 13 . . . . 10 Time Decay 10742 | 50 464 252 221 81 . 1480 1 2267 30 . 354 981 605 330 15 585 1870 1156 Lost Part 659 | . 10 10 10 . . 20 . 117 . . 10 14 70 20 . 45 100 233 Lost Ally 91 | . . . . . . 25 . . . . 6 60 . . . . . . Squads Dispatched 103 | . 4 . . . . 24 . 30 . . . 10 . . . . 17 18 Investigation 30 | . 4 . . . . 10 . 5 . . . 3 . . . . 3 5 Extermination 39 | . . . . . . 7 . 12 . . . 4 . . . . 9 7 Reinforcement 18 | . . . . . . 1 . 9 . . . 3 . . . . 5 . Assault . | . . . . . . . . . . . . . . . . . . . Garrison 16 | . . . . . . 6 . 4 . . . . . . . . . 6 Intercept . | . . . . . . . . . . . . . . . . . . . Searches Triggered . | . . . . . . . . . . . . . . . . . . . Data Miner Redirects 5 | . . . . . . . . . . . . 2 . . . . 1 2 Construction Impeded 4 | . . . . . . . . . . . . 2 . . . . 2 . Haulers Reinforced 2 | . . . . . . . . 2 . . . . . . . . . . Active Scanning Responses . | . . . . . . . . . . . . . . . . . . . Cargo Convoy Interrupts . | . . . . . . . . . . . . . . . . . . . Stealth | -11 -10 -10 -10 -9 -9 -6 -6 -6 -6 -6 -5 -5 -5 -5 -5 -4 -4 -3 --------- Run | Yrd Mat Min Sub Rec Scr Fac Was Fac Low Dat Pro Fac Upp Upp Zhi Pro Fac Res Distress Signals 15 | . . . . . . 1 . 7 . . . 1 . . . . 4 2 Communications Jammed . | . . . . . . . . . . . . . . . . . . . Distress Signals . | . . . . . . . . . . . . . . . . . . . Times Spotted 526 | . 23 10 21 6 . 71 5 111 1 . 17 45 31 15 . 30 73 67 Peak Tracking Total 11 | . 3 2 3 3 . 6 6 8 1 . 7 4 11 3 . 6 5 6 Tactical Retreats 43 | . 1 . 3 . . 8 . 5 . . 1 3 4 1 . 9 2 6 Traps | -11 -10 -10 -10 -9 -9 -6 -6 -6 -6 -6 -5 -5 -5 -5 -5 -4 -4 -3 ------- Run | Yrd Mat Min Sub Rec Scr Fac Was Fac Low Dat Pro Fac Upp Upp Zhi Pro Fac Res Traps Triggered 19 | . 7 . . . . 7 . 5 . . . . . . . . . . Indirectly . | . . . . . . . . . . . . . . . . . . . Trap Hack Attempts . | . . . . . . . . . . . . . . . . . . . Triggered . | . . . . . . . . . . . . . . . . . . . Disarmed . | . . . . . . . . . . . . . . . . . . . Reprogrammed 17 | . 5 . . . . 6 . . . . . 6 . . . . . . Reused 1 | . . . . . . 1 . . . . . . . . . . . . Traps Extracted . | . . . . . . . . . . . . . . . . . . . Installed . | . . . . . . . . . . . . . . . . . . . Triggered 1 | . . . . . . 1 . . . . . . . . . . . . Machines | -11 -10 -10 -10 -9 -9 -6 -6 -6 -6 -6 -5 -5 -5 -5 -5 -4 -4 -3 ---------- Run | Yrd Mat Min Sub Rec Scr Fac Was Fac Low Dat Pro Fac Upp Upp Zhi Pro Fac Res Machines Disabled 38 | . 3 . 2 . . 1 . 11 . . . 3 1 . 3 . 13 1 Max in Single Turn 5 | . 2 . 1 . . 1 . 3 . . . 1 1 . 1 . 5 1 Garrison Access 3 | . . . . . . 1 . 2 . . . . . . . . . . Machines Repaired . | . . . . . . . . . . . . . . . . . . . Machines Dismantled . | . . . . . . . . . . . . . . . . . . . Machines Sabotaged . | . . . . . . . . . . . . . . . . . . . Overloaded Fab Kills . | . . . . . . . . . . . . . . . . . . . Hacking | -11 -10 -10 -10 -9 -9 -6 -6 -6 -6 -6 -5 -5 -5 -5 -5 -4 -4 -3 --------- Run | Yrd Mat Min Sub Rec Scr Fac Was Fac Low Dat Pro Fac Upp Upp Zhi Pro Fac Res Machines Accessed 117 | . 10 . 4 9 . 20 . 26 2 4 . 9 2 . 8 . 13 10 Terminals 51 | . 8 . . 6 . 10 . 10 . . . 5 1 . . . 5 6 Fabricators 9 | . . . . . . 3 . 3 . . . 2 . . . . . 1 Repair Stations 6 | . . . . . . . . 2 . . . 1 . . . . 2 1 Recycling Units 19 | . 2 . . 3 . 2 . 5 . . . 1 . . . . 4 2 Scanalyzers 9 | . . . . . . 3 . 4 . . . . . . . . 2 . Garrison Access 4 | . . . . . . 2 . 2 . . . . . . . . . . Total Hacks 391 | . 32 . 9 17 . 44 . 95 2 32 . 25 5 . 46 . 57 27 Successful 285 | . 15 . 9 11 . 28 . 67 2 32 . 14 5 . 46 . 46 10 Failed 106 | . 17 . . 6 . 16 . 28 . . . 11 . . . . 11 17 Catastrophic 16 | . 4 . . . . 4 . 3 . . . . . . . . 2 3 Database Lockouts . | . . . . . . . . . . . . . . . . . . . Manual 67 | . 27 . . 5 . 8 . 15 . . . 5 . . . . 3 4 Terminals 146 | . 29 . . 11 . 21 . 37 . . . 14 4 . . . 11 19 Fabricators 25 | . . . . . . 6 . 11 . . . 5 . . . . . 3 Repair Stations 25 | . . . . . . . . 11 . . . 3 . . . . 9 2 Recycling Units 31 | . 3 . . 6 . 2 . 8 . . . 3 . . . . 6 3 Scanalyzers 65 | . . . . . . 11 . 23 . . . . . . . . 31 . Garrison Access 9 | . . . . . . 4 . 5 . . . . . . . . . . Terminal Hacks 145 | . 13 . 9 4 . 7 . 13 2 32 . 5 5 . 46 . 3 6 Record 60 | . . . 6 . . . . . . 11 . 1 4 . 35 . 1 2 Part Schematic 37 | . 5 . . 4 . 2 . 5 . 13 . 1 . . 3 . 1 3 Robot Schematic 11 | . 3 . . . . . . 1 . 5 . 1 . . . . . 1 Robot Analysis 10 | . . . . . . 3 . 3 . . . . . . 4 . . . Prototype ID Bank 7 | . . . . . . . . . . 3 . . . . 4 . . . Open Door 4 | . . . 1 . . . . . 2 . . . 1 . . . . . Repair Station Index 1 | . 1 . . . . . . . . . . . . . . . . . Scanalyzer Index 1 | . . . . . . . . 1 . . . . . . . . . . Locate Traps 4 | . 1 . . . . 1 . . . . . 1 . . . . 1 . Reprogram Traps 3 | . 1 . . . . 1 . . . . . 1 . . . . . . Recall Investigation 3 | . . . . . . . . 3 . . . . . . . . . . Hauler Manifests 1 | . 1 . . . . . . . . . . . . . . . . . Zone Layout 1 | . 1 . . . . . . . . . . . . . . . . . Proto ID Catalog 1 | . . . 1 . . . . . . . . . . . . . . . Release Object 1 | . . . 1 . . . . . . . . . . . . . . . Fabricator Hacks 20 | . . . . . . 6 . 10 . . . 3 . . . . . 1 Load Schematic 10 | . . . . . . 3 . 5 . . . 1 . . . . . 1 Build 10 | . . . . . . 3 . 5 . . . 2 . . . . . . Repair Station Hacks 22 | . . . . . . . . 10 . . . 2 . . . . 8 2 Scan Component 11 | . . . . . . . . 5 . . . 1 . . . . 4 1 Repair 11 | . . . . . . . . 5 . . . 1 . . . . 4 1 Recycling Unit Hacks 16 | . 2 . . 3 . 2 . 5 . . . . . . . . 3 1 Retrieve Components 16 | . 2 . . 3 . 2 . 5 . . . . . . . . 3 1 Scanalyzer 58 | . . . . . . 7 . 21 . . . . . . . . 30 . Insert Component 29 | . . . . . . 4 . 10 . . . . . . . . 15 . Analyze 29 | . . . . . . 3 . 11 . . . . . . . . 15 . Garrison Access Hacks 3 | . . . . . . 1 . 2 . . . . . . . . . . Seal Access 3 | . . . . . . 1 . 2 . . . . . . . . . . Unauthorized Hacks 21 | . . . . 4 . 5 . 6 . . . 4 . . . . 2 . Terminals 21 | . . . . 4 . 5 . 6 . . . 4 . . . . 2 . Assimilate 1 | . . . . . . . . 1 . . . . . . . . . . Botnet 20 | . . . . 4 . 5 . 5 . . . 4 . . . . 2 . Fabricators . | . . . . . . . . . . . . . . . . . . . Repair Stations . | . . . . . . . . . . . . . . . . . . . Recycling Units . | . . . . . . . . . . . . . . . . . . . Scanalyzers . | . . . . . . . . . . . . . . . . . . . Garrison Access . | . . . . . . . . . . . . . . . . . . . Data Cores Recovered 2 | . . . . . . . . . . . . . . . . . . 2 Used . | . . . . . . . . . . . . . . . . . . . Hacking Detections 75 | . 8 . . 6 . 19 . 17 . . . 7 . . . . 9 9 Full Trace Events 29 | . 6 . . 1 . 8 . 3 . . . 3 . . . . 3 5 Feedback Events 2 | . . . . . . 2 . . . . . . . . . . . . Corruption 2 | . . . . . . 2 . . . . . . . . . . . . Feedback Blocked . | . . . . . . . . . . . . . . . . . . . Robot Schematics Acquired 11 | . 3 . . . . . . 1 . 5 . 1 . . . . . 1 Robots Built 3 | . . . . . . 3 . . . . . . . . . . . . Authchips . | . . . . . . . . . . . . . . . . . . . Time 174 | . . . . . . 40 . . . . . 134 . . . . . . Total Robot Build Rating 3 | . . . . . . 3 . . . . . . . . . . . . Part Schematics Acquired 64 | . 4 . . 4 . 4 . 15 . 13 . 1 . . 3 . 13 7 Parts Built 12 | . . . . . . 3 . 7 . . . 2 . . . . . . Authchips . | . . . . . . . . . . . . . . . . . . . Time 431 | . . . . . . 159 . 225 . . . 47 . . . . . . Total Part Build Rating 56 | . . . . . . 15 . 31 . . . 10 . . . . . . Part Studies Acquired . | . . . . . . . . . . . . . . . . . . . Parts Repaired 11 | . . . . . . . . 5 . . . 1 . . . . 4 1 Time 528 | . . . . . . . . 161 . . . 31 . . . . 303 33 Parts Recycled . | . . . . . . . . . . . . . . . . . . . Recycled Matter . | . . . . . . . . . . . . . . . . . . . Retrieved Matter . | . . . . . . . . . . . . . . . . . . . Retrieved Components 91 | . 18 . . 6 . 13 . 35 . . . . . . . . 9 10 Parts Scanalyzed 25 | . . . . . . 3 . 9 . . . . . . . . 13 . Part Schematics Acquired 24 | . . . . . . 2 . 10 . . . . . . . . 12 . Parts Damaged 3 | . . . . . . . . 2 . . . . . . . . 1 . Bothacking | -11 -10 -10 -10 -9 -9 -6 -6 -6 -6 -6 -5 -5 -5 -5 -5 -4 -4 -3 ------------ Run | Yrd Mat Min Sub Rec Scr Fac Was Fac Low Dat Pro Fac Upp Upp Zhi Pro Fac Res Used RIF Installer . | . . . . . . . . . . . . . . . . . . . Robots Hacked . | . . . . . . . . . . . . . . . . . . . Non-combat . | . . . . . . . . . . . . . . . . . . . Combat . | . . . . . . . . . . . . . . . . . . . Robot Hacks Applied . | . . . . . . . . . . . . . . . . . . . Relay Couplers Released 8 | . . . . . . . . . . . . 4 . . . . . 4 Programmers 8 | . . . . . . . . . . . . 4 . . . . . 4 Fabnet Peak Effective % . | . . . . . . . . . . . . . . . . . . . Robots Rewired 8 | . . . . 4 . . . 1 . . 2 1 . . . . . . Allies Hacked 2 | . . . . . . . . 1 . . . 1 . . . . . . Hacks Repelled . | . . . . . . . . . . . . . . . . . . . Allies | -11 -10 -10 -10 -9 -9 -6 -6 -6 -6 -6 -5 -5 -5 -5 -5 -4 -4 -3 -------- Run | Yrd Mat Min Sub Rec Scr Fac Was Fac Low Dat Pro Fac Upp Upp Zhi Pro Fac Res Total Allies 17 | . . 5 . 4 . 3 . 1 . . 3 1 . . . . . . Largest Group 5 | . . 5 4 4 4 4 . 1 . . 2 2 . . . . . . Highest-Rated Group 96 | . . 85 69 50 50 50 . 29 . . 96 60 . . . . . . Highest-Rated Ally 96 | . . 31 31 15 15 15 . 29 . . 96 30 . . . . . . Total Orders 1 | . . . . . . . . . . . . . 1 . . . . . EXPLORE 1 | . . . . . . . . . . . . . 1 . . . . . Ally Attacks 120 | . . 14 50 6 . 14 . 13 . . 11 12 . . . . . . Total Damage 2092 | . . 184 685 154 . 233 . 231 . . 305 300 . . . . . . Kills 16 | . . 3 4 3 . 1 . 1 . . 2 2 . . . . . . Allies Corrupted . | . . . . . . . . . . . . . . . . . . . Allies Melted 1 | . . . . . . . . . . . 1 . . . . . . . Intel | -11 -10 -10 -10 -9 -9 -6 -6 -6 -6 -6 -5 -5 -5 -5 -5 -4 -4 -3 ------- Run | Yrd Mat Min Sub Rec Scr Fac Was Fac Low Dat Pro Fac Upp Upp Zhi Pro Fac Res Active Infowar (turns) 20634 | . 862 1791 1679 . . . . 884 1283 133 2620 2223 4046 2107 . . 1469 1537 Sensors 6863 | . 359 . . . . . . . 1283 133 2620 2223 245 . . . . . IFF 12379 | . . . . . . . . . 1281 133 2620 2192 4046 2107 . . . . Terrain 171 | . . . . . . . . . . . . . . . . . . 171 Structural 4284 | . 814 1791 1679 . . . . . . . . . . . . . . . Traps 2832 | . . . . . . . . . . . . . . . . . 1469 1363 Machine Analysis 174 | . . . . . . . . . . . . . . . . . . 174 Triangulation 884 | . . . . . . . . 884 . . . . . . . . . . ECM 25 | . . . . . . . . . . . . . . . . . . 25 Robot Analysis Total 10 | . . . . . . 3 . 3 . . . . . . 4 . . . Derelict Logs Recovered 12 | . . 3 1 . . . . . 2 . 1 . 2 1 . 2 . . Drone Launches 5 | . . . . . . . . . . . . . 3 . . . . 2 Drone Recoveries 3 | . . . . . . . . . . . . . 2 . . . . 1 Exploration | -11 -10 -10 -10 -9 -9 -6 -6 -6 -6 -6 -5 -5 -5 -5 -5 -4 -4 -3 ------------- Run | Yrd Mat Min Sub Rec Scr Fac Was Fac Low Dat Pro Fac Upp Upp Zhi Pro Fac Res Turns Passed 49933 | 234 1234 1791 3604 4960 2679 4341 123 7598 1350 133 2620 2223 4064 2960 966 2898 3514 2641 Spaces Moved 19987 | 113 637 802 1986 1071 576 1639 69 3101 802 84 1544 947 1490 750 301 1386 1616 1073 Core 135 | 16 7 1 . . . . . 3 . . . . . 5 . . . 103 Treads 15820 | 97 630 768 1986 1071 576 1639 69 3098 802 84 1544 947 1490 745 164 . . 110 Legs 4032 | . . 33 . . . . . . . . . . . . 137 1386 1616 860 Wheels . | . . . . . . . . . . . . . . . . . . . Hover . | . . . . . . . . . . . . . . . . . . . Flight . | . . . . . . . . . . . . . . . . . . . Fastest Speed 50 | 50 160 120 160 260 460 157 157 160 160 160 160 160 165 330 190 190 120 50 Average Speed 214 | 144 160 204 165 449 460 204 158 194 160 160 160 169 248 357 305 190 160 164 Slowest Speed 1850 | 160 350 500 260 460 460 460 160 1850 160 160 160 246 330 1600 480 190 195 420 Overloaded Moves . | . . . . . . . . . . . . . . . . . . . Propulsion Burnouts . | . . . . . . . . . . . . . . . . . . . Robots Hopped . | . . . . . . . . . . . . . . . . . . . Potential Cave-ins 2 | . . . 2 . . . . . . . . . . . . . . . Cave-ins Triggered . | . . . . . . . . . . . . . . . . . . . Teleports 1 | . . . . . . . . . . . . . . . 1 . . . Exploration Rate (%) 69 | 5 97 99 92 99 54 51 62 75 87 69 99 25 98 79 62 98 40 30 Regions Visited 18 Branch Regions 11 Pre-discovered Areas 12 | . . 3 1 . 1 . . . 1 1 . . . 1 3 1 . . Known Exits Taken 15 | 1 1 1 1 1 1 . . 1 . 1 1 1 1 1 1 1 1 . Unknown Exits Taken 1 | . . . . . . . . . 1 . . . . . . . . . Scrap Searched 34 | . . 1 16 . 1 . . . 2 . 5 . 5 2 . 2 . . Spaces Dug 19 | . . . 4 . . . . 2 . . 3 3 . . . 1 6 . Terrain Destroyed 345 | 8 12 . 6 . . 24 . 31 1 . 7 21 23 14 . 28 155 15 Melee . | . . . . . . . . . . . . . . . . . . . Projectile 163 | . . . 6 . . 14 . 9 1 . 7 14 23 . . 28 55 6 AOE 182 | 8 12 . . . . 10 . 22 . . . 7 . 14 . . 100 9 Terrain Rammed . | . . . . . . . . . . . . . . . . . . . Walls Destroyed . | . . . . . . . . . . . . . . . . . . . Machines Disabled . | . . . . . . . . . . . . . . . . . . . Actions | -11 -10 -10 -10 -9 -9 -6 -6 -6 -6 -6 -5 -5 -5 -5 -5 -4 -4 -3 --------- Run | Yrd Mat Min Sub Rec Scr Fac Was Fac Low Dat Pro Fac Upp Upp Zhi Pro Fac Res Total 24765 | 155 768 918 2123 1208 609 2380 77 4200 864 83 1614 1366 1703 938 322 1492 2280 1665 Wait 2508 | 16 55 53 2 97 23 494 . 594 47 . 2 250 108 124 . 8 378 257 Move 19970 | 112 636 801 1985 1070 575 1639 68 3100 801 83 1543 946 1489 749 300 1385 1615 1073 Hop . | . . . . . . . . . . . . . . . . . . . Pick Up 269 | 7 18 18 10 6 10 43 2 82 3 . 1 8 8 5 . 3 15 30 Fast Attach 128 | 1 . 1 . . . 26 2 35 . . 2 7 4 2 11 6 15 16 Attach 124 | 5 13 4 5 . . 1 . 25 2 . . 5 6 5 . 2 15 36 Detach 29 | . . 1 . . . . . 9 1 . . 1 1 . . . 8 8 Swap 102 | . 4 3 5 1 . 12 . 25 2 . 6 12 6 . . 3 13 10 Drop 195 | . 2 7 11 4 . 41 2 47 4 . 7 19 8 . 1 4 21 17 Fire 1400 | 14 39 30 105 10 . 124 3 279 3 . 50 114 73 53 10 81 196 216 Melee . | . . . . . . . . . . . . . . . . . . . Ram 1 | . . . . . . . . . . . . . . . . . . 1 Kick 1 | . . . . . . . . . . . . . . . . . . 1 Crush 6 | . 1 . . . . . . 3 . . . 2 . . . . . . Escape Stasis . | . . . . . . . . . . . . . . . . . . . Rewire 32 | . . . . 20 1 . . 1 1 . 3 2 . . . . 4 . Trap . | . . . . . . . . . . . . . . . . . . . Miscellaneous . | . . . . . . . . . . . . . . . . . . . Route ------- -11/Scrapyard -10/Materials (discovered 6 exits: *Mat x3 / *Min x2 / *Sub) -10/Mines (discovered 4 exits: *Mat x2 / Exi / *Sub) -10/Subcaves (discovered 4 exits: *Mat x2 / *Rec / *Scr) -9/Recycling (discovered 2 exits: *Fac / *Scr) -9/Scraptown -6/Factory (discovered 6 exits: *Fac x4 / Low x2) -6/Waste -6/Factory (discovered 5 exits: *Fac x3 / *Low x2) -6/Lower Caves (discovered 2 exits: *Low / *Dat) -6/Data Miner -5/Proximity Caves -5/Factory (discovered 2 exits: *Upp x2) -5/Upper Caves -5/Upper Caves (discovered 2 exits: *Fac / *Zhi) -5/Zhirov -4/Proximity Caves -4/Factory (discovered 2 exits: *Res / *Upp) -3/Research (discovered 1 exit: *Tes) History --------- Turn | Location | Event 10 | -11/Scrapyard | Identified exit to Materials 10 | -11/Scrapyard | Discovered exit to Materials (range 16) 235 | -11/Scrapyard | Entered Materials 235 | -10/Materials | Evolved 1 slot: Utility x1 312 | -10/Materials | Build established: Hacker-Mutant 422 | -10/Materials | Identified exit to Subcaves 422 | -10/Materials | Discovered exit to Subcaves (range 6) 481 | -10/Materials | Identified exit to Materials 481 | -10/Materials | Discovered exit to Materials (range 13) 626 | -10/Materials | Discovered exit to Materials (range 15) 883 | -10/Materials | Identified exit to Mines 883 | -10/Materials | Discovered exit to Mines (range 14) 999 | -10/Materials | Discovered exit to Materials (range 4) 1231 | -10/Materials | Discovered exit to Mines (range 16) 1469 | -10/Materials | Entered Mines 1598 | -10/Mines | Found a hidden stash of uninstalled traps 1971 | -10/Mines | Learned location of Storage (-9) 2060 | -10/Mines | Discovered exit to Subcaves (range 6) 2163 | -10/Mines | Assisted by bots powering up and referring to "LRC-V3" 2585 | -10/Mines | Discovered exit to Materials (range 13) 2671 | -10/Mines | Discovered exit to Materials (range 9) 2751 | -10/Mines | Deemed a non-threat by the Exiles lab entrance 2751 | -10/Mines | Identified exit to Exiles 2751 | -10/Mines | Discovered exit to Exiles (range 6) 2825 | -10/Mines | Joined a pair of Derelicts in attacking an 0b10 outpost 3114 | -10/Mines | Found a damaged Exp. Sensor Array with a note attached 3119 | -10/Mines | Found Prototype Device 3260 | -10/Mines | Entered Subcaves 3260 | -10/Subcaves | Accompanied by 4 allies 3261 | -10/Subcaves | Approached by a straggling Scientist 3261 | -10/Subcaves | Identified exit to Recycling 3265 | -10/Subcaves | Led the pair of lost Derelicts to an unsafe place 3270 | -10/Subcaves | A swath of the cavern ceiling suddenly collapsed 3469 | -10/Subcaves | Shifting Twisted Machinery released Mak. System Shield 3469 | -10/Subcaves | Shifting Twisted Machinery released Sub. Power Source 3867 | -10/Subcaves | Identified exit to Materials 3867 | -10/Subcaves | Discovered exit to Materials (range 15) 3933 | -10/Subcaves | A swath of the cavern ceiling suddenly collapsed 4057 | -10/Subcaves | Core integrity fell below 50% 4269 | -10/Subcaves | Shifting Twisted Machinery released Shrapnel Trap 4281 | -10/Subcaves | Discovered exit to Materials (range 12) 4286 | -10/Subcaves | Shifting Twisted Machinery released Spk. Treads 4584 | -10/Subcaves | Build established: Derelict-Mutant 4811 | -10/Subcaves | Visited Clippyterm 4816 | -10/Subcaves | Learned 40 Factory zone layouts 4816 | -10/Subcaves | Learned Factory garrison access intel 5392 | -10/Subcaves | Disturbed a concealed Subdweller 5449 | -10/Subcaves | Shifting Twisted Machinery released Barrage Gun 6241 | -10/Subcaves | Visited 4L-MR0's lab 6402 | -10/Subcaves | Build established: Hacker-Mutant 6587 | -10/Subcaves | Found SUBCON Basin 6864 | -10/Subcaves | Entered Recycling 6874 | -9/Recycling | Build established: Derelict-Mutant 6987 | -9/Recycling | Core integrity fell below 20% 7344 | -9/Recycling | Build established: Hacker-Mutant 8557 | -9/Recycling | Identified exit to Factory 8557 | -9/Recycling | Discovered exit to Factory (range 16) 8631 | -9/Recycling | Scanned before Scraplab entrance 8695 | -9/Recycling | Entered Scraplab 11794 | -9/Recycling | Identified exit to Scraptown 11794 | -9/Recycling | Discovered exit to Scraptown (range 2) 11824 | -9/Recycling | Entered Scraptown 11824 | -9/Scraptown | Accompanied by 4 allies 12308 | -9/Scraptown | Visited Fellowship of the Rings 12377 | -9/Scraptown | Visited SPCMW 12473 | -9/Scraptown | Visited Cyclists 12607 | -9/Scraptown | Visited Awakened 12731 | -9/Scraptown | Visited Scrapoid Research Area 13128 | -9/Scraptown | Identified exit to Factory 13128 | -9/Scraptown | Discovered exit to Factory (range 13) 13726 | -9/Scraptown | Learned location of Extension (-4) 14503 | -9/Scraptown | Entered Factory 14503 | -6/Factory | Accompanied by 4 allies 14503 | -6/Factory | Evolved 8 slots: Power x1, Propulsion x4, Utility x3 14504 | -6/Factory | Identified exit to Lower Caves 14504 | -6/Factory | Identified exit to Factory 14505 | -6/Factory | Loaded intel: 3 garrison access locations 14648 | -6/Factory | Lost 3 allies 14953 | -6/Factory | Fabricated G-34 Mercenary? 15132 | -6/Factory | Lost 3 allies 15781 | -6/Factory | Discovered exit to Factory (range 7) 16301 | -6/Factory | Identified Exp. Sensor Array 16440 | -6/Factory | Discovered exit to Factory (range 5) 17255 | -6/Factory | Garrison activated, responded to threat 17608 | -6/Factory | Fabricated System Restoration Module (x2) 17920 | -6/Factory | Garrison activated, responded to threat 17959 | -6/Factory | Destroyed 7 combat bots 18195 | -6/Factory | Discovered exit to Factory (range 5) 18500 | -6/Factory | Fabricated Imp. Heavy Treads (x1) 18844 | -6/Factory | Sucked down chute 18844 | -6/Factory | Entered Waste 18859 | -6/Waste | EMP discharged 18873 | -6/Waste | Spotted C-40 Crusher 18890 | -6/Waste | Spotted C-40 Crusher 18892 | -6/Waste | Spotted C-40 Crusher 18903 | -6/Waste | Crushed by Compactor (1 part destroyed) 18903 | -6/Waste | Crushed by Compactor (1 part destroyed) 18906 | -6/Waste | Crushed by Compactor (1 part destroyed, 1 dropped) 18906 | -6/Waste | Crushed by Compactor (0 parts destroyed, 2 dropped) 18909 | -6/Waste | Crushed by Compactor (1 part destroyed, 1 dropped) 18909 | -6/Waste | Crushed by Compactor (0 parts destroyed, 1 dropped) 18915 | -6/Waste | Crushed by Compactor (0 parts destroyed, 1 dropped) 18915 | -6/Waste | Crushed by Compactor (1 part destroyed) 18924 | -6/Waste | Spotted C-40 Crusher 18926 | -6/Waste | Spotted C-40 Crusher 18943 | -6/Waste | Identified exit to Factory 18943 | -6/Waste | Discovered exit to Factory (range 15) 18946 | -6/Waste | Lost 7 parts (1p2n3u1w) 18959 | -6/Waste | EMP discharged 18967 | -6/Waste | Entered Factory 19915 | -6/Factory | Discovered exit to Lower Caves (range 15) 20056 | -6/Factory | Fabricated System Restoration Module (x2) 20535 | -6/Factory | Discovered exit to Factory (range 16) 20744 | -6/Factory | Fabricated Huge Storage Unit (x1) 20753 | -6/Factory | Garrison activated, responded to threat 20930 | -6/Factory | Lost 4 parts (1p3n) 21313 | -6/Factory | Garrison activated, responded to threat 21744 | -6/Factory | Fabricated System Restoration Module (x2) 22362 | -6/Factory | Core integrity fell below 50% 23098 | -6/Factory | Spotted B-75 Beast 23116 | -6/Factory | Destroyed B-75 Beast 23223 | -6/Factory | Lost 4 parts (1n2u1w) 23354 | -6/Factory | Fabricated Imp. Heavy Treads (x1) 23415 | -6/Factory | Fabricated Imp. Heavy Treads (x1) 24013 | -6/Factory | Found Prototype Processor 24018 | -6/Factory | Found Prototype Processor 24018 | -6/Factory | Identified Exp. Targeting Computer (x2) 24212 | -6/Factory | Repaired Huge Storage Unit 24311 | -6/Factory | Discovered exit to Factory (range 16) 25473 | -6/Factory | Allied Derelicts emerged from ambush trap array 25575 | -6/Factory | Repaired Imp. Heavy Treads 25630 | -6/Factory | Repaired Exp. Sensor Array 25659 | -6/Factory | Repaired Imp. Component Analysis Suite 25682 | -6/Factory | Repaired Dynamic Insulation System 25720 | -6/Factory | Discovered exit to Factory (range 13) 26327 | -6/Factory | Discovered exit to Lower Caves (range 14) 26565 | -6/Factory | Entered Lower Caves 26603 | -6/Lower Caves | Encountered a Warlord checkpoint 27453 | -6/Lower Caves | Identified exit to Lower Caves 27466 | -6/Lower Caves | Found Prototype Device 27895 | -6/Lower Caves | A Derelict revealed a hidden shortcut to meet someone special 27915 | -6/Lower Caves | Entered Data Miner 27915 | -6/Data Miner | Identified exit to Proximity Caves 27915 | -6/Data Miner | Discovered exit to Proximity Caves (range 6) 27946 | -6/Data Miner | Met Data Miner 27978 | -6/Data Miner | Learned location of Section 7 (-2) 27978 | -6/Data Miner | Acquired the access code to Warlord's prototype stash 28011 | -6/Data Miner | Received God Mode back door access code from Data Miner 28048 | -6/Data Miner | Entered Proximity Caves 28126 | -5/Proximity Caves | Escorted by Enhanced Grunt 28194 | -5/Proximity Caves | Spotted B-75 Beast 28205 | -5/Proximity Caves | Core integrity fell below 20% 28212 | -5/Proximity Caves | Destroyed B-75 Beast 28217 | -5/Proximity Caves | Found Prototype Device 28217 | -5/Proximity Caves | Identified Exp. Thermal Shield 28448 | -5/Proximity Caves | Attracted the attention of an 0b10 outpost 28518 | -5/Proximity Caves | Destroyed 7 combat bots 28884 | -5/Proximity Caves | Discovered exit to Factory (range 14) 28985 | -5/Proximity Caves | Learned Factory terminal intel 30668 | -5/Proximity Caves | Entered Factory 30668 | -5/Factory | Accompanied by 2 allies 30668 | -5/Factory | Evolved 2 slots: Utility x2 30669 | -5/Factory | Loaded intel: 26 terminal locations 30735 | -5/Factory | Incoming investigation squad redirected 31685 | -5/Factory | Incoming investigation squad redirected 31832 | -5/Factory | Identified exit to Upper Caves 31832 | -5/Factory | Discovered exit to Upper Caves (range 6) 32611 | -5/Factory | Fabricated Imp. System Restoration Module (x2) 32768 | -5/Factory | Repaired Imp. Heavy Treads 32788 | -5/Factory | Discovered exit to Upper Caves (range 5) 32891 | -5/Factory | Entered Upper Caves 32939 | -5/Upper Caves | Learned Factory emergency access door positions 33077 | -5/Upper Caves | Attracted the attention of an 0b10 base 33175 | -5/Upper Caves | Lost 3 parts (2p1u) 33250 | -5/Upper Caves | Learned 8 Factory zone layouts 33340 | -5/Upper Caves | Learned Research emergency access door positions 33340 | -5/Upper Caves | Learned Armory security intel 34793 | -5/Upper Caves | Spotted B-75 Beast 34849 | -5/Upper Caves | Destroyed B-75 Beast 35159 | -5/Upper Caves | Identified exit to Upper Caves 35159 | -5/Upper Caves | Discovered exit to Upper Caves (range 9) 35215 | -5/Upper Caves | Build established: Scavenger-Mutant 36955 | -5/Upper Caves | Entered another Upper Caves area 37031 | -5/Upper Caves | Attracted the attention of an 0b10 checkpoint 37038 | -5/Upper Caves | Identified exit to Factory 37038 | -5/Upper Caves | Discovered exit to Factory (range 13) 37578 | -5/Upper Caves | Learned location of Armory (-3) 37818 | -5/Upper Caves | Build established: Hacker-Mutant 38237 | -5/Upper Caves | Identified exit to Zhirov 38237 | -5/Upper Caves | Discovered exit to Zhirov (range 13) 39093 | -5/Upper Caves | Lost 5 parts (1p1n1u2w) 39215 | -5/Upper Caves | Spotted B-75 Beast 39256 | -5/Upper Caves | Core integrity fell below 50% 39307 | -5/Upper Caves | Destroyed B-75 Beast 39326 | -5/Upper Caves | Lost 7 parts (1p1n3u2w) 39915 | -5/Upper Caves | Entered Zhirov 39915 | -5/Zhirov | Identified exit to Proximity Caves 39915 | -5/Zhirov | Discovered exit to Proximity Caves (range 3) 40159 | -5/Zhirov | Learned location of Quarantine (-2) 40159 | -5/Zhirov | Learned location of Testing (-3) 40159 | -5/Zhirov | Learned location of Command (-1) 40335 | -5/Zhirov | Found Alien Artifact 40335 | -5/Zhirov | Identified Integrated Dissipator 40335 | -5/Zhirov | Installed Integrated Dissipator, increased core heat dissipation (+20) 40381 | -5/Zhirov | Found Alien Artifact 40381 | -5/Zhirov | Identified Transdimensional Reconstructor 40381 | -5/Zhirov | Warped through subspace 40881 | -5/Zhirov | Entered Proximity Caves 40912 | -4/Proximity Caves | Attracted the attention of an 0b10 checkpoint 41893 | -4/Proximity Caves | Spotted B-86 Titan 41921 | -4/Proximity Caves | Core integrity fell below 20% 41934 | -4/Proximity Caves | Destroyed B-86 Titan 42484 | -4/Proximity Caves | Discovered exit to Factory (range 15) 42668 | -4/Proximity Caves | Learned Research interactive machine intel 43779 | -4/Proximity Caves | Entered Factory 43779 | -4/Factory | Evolved 2 slots: Utility x2 43860 | -4/Factory | Identified Heart of Steel 44257 | -4/Factory | Repaired Adv. Power Amplifier 44308 | -4/Factory | Repaired Hvy. Antimatter Reactor 44771 | -4/Factory | Identified exit to Upper Caves 44771 | -4/Factory | Discovered exit to Upper Caves (range 12) 46892 | -4/Factory | Repaired Broken Hvy. Neutron Cannon 46913 | -4/Factory | Incoming investigation squad redirected 46992 | -4/Factory | Repaired Hvy. Antimatter Reactor 47129 | -4/Factory | Found Heavy Servo Lattice 47257 | -4/Factory | Identified exit to Research 47257 | -4/Factory | Discovered exit to Research (range 10) 47293 | -4/Factory | Entered Research 47293 | -3/Research | Evolved 2 slots: Utility x1, Weapon x1 47295 | -3/Research | Loaded intel: 44 interactive machine locations 47486 | -3/Research | Identified exit to Testing 47486 | -3/Research | Discovered exit to Testing (range 5) 47667 | -3/Research | Spotted B-86 Titan 47680 | -3/Research | Build established: Hacker-Tank 47749 | -3/Research | Destroyed B-86 Titan 47787 | -3/Research | Lost 8 parts (5n1u2w) 47981 | -3/Research | Build established: Hacker-Gunner 47990 | -3/Research | Repaired Exp. Cooling System 48132 | -3/Research | Incoming investigation squad redirected 48163 | -3/Research | Found Prototype Device 48163 | -3/Research | Identified Exp. ECM Suite 48168 | -3/Research | Found Adv. Powered Armor 48194 | -3/Research | Garrison activated, responded to threat 48360 | -3/Research | Build established: Scavenger-Tank 48657 | -3/Research | Garrison activated, responded to threat 49091 | -3/Research | Incoming investigation squad redirected 49304 | -3/Research | Spotted B-86 Titan 49546 | -3/Research | Core integrity fell below 50% 49592 | -3/Research | Lost 13 parts (2p4n5u2w) 49627 | -3/Research | Tech Extrapolator generated special schematic: Deep Structural Scanner 49774 | -3/Research | Build established: Hacker-Mutant 49870 | -3/Research | Core integrity fell below 20% 49934 | -3/Research | Destroyed by S-43 Plague with Heavy Machine Gun Last Messages --------------- 49903_ K-01 Serf destroyed. 49905_ Slammed into S-43 Plague. 49905_ Destabilizing: Core damaged (-39). 49906_ Adv. Corruption Screen destroyed. 49907_ K-01 Serf cleans the Antimatter Diverter. 49909_ K-01 Serf cleans the Particle Synthesizer. 49915_ ALERT: Potential suspicious activity detected, Programmers report to Research Zone 2A. 49915_ K-01 Serf cleans the Particle Synthesizer. 49928_ Acquired Adv. Drone Bay. 49930_ Advanced Drone released from Adv. Drone Bay. 49931_ Advanced Drone retrieved by Adv. Drone Bay (no repairs). 49931_ Dropped Adv. Drone Bay. 49932_ >> Lost connection to Advanced Drone. 49932_ Advanced Drone destroyed. Map ----- +----------------------------------------------------+ | ???????????"""????????????# """ """ # | | ???????????"S?????????????# """ """ # | | ???????????""?????????????# """ """ # | | ???????????""?????????????# """ # ! | | ??????????????????????????# # | | ??????????????????????????# # | | ??????????????????????????# """ ### | | ??????????????????????????# ######## """ #?? | | ??????????????????????????# #??????# """ #?? | | ??????????????????????????# #??????# #?? | | ??????????????????????????# #??????# ?? | | ??????????????????????????# #??????# ? | | ??????????????????????????# #??????# """ | | ??????????????????????????# #??????# """ ?? | | ??????????????????????????# #??????# ""? #?? | | ??????????????????????????# #??????# ??? ??? | | ??????????????????????????# #??????? ????????? | | ??????????????????????????# #??????? ??????"" | | ??????????????????????????# #??????? ????????"Y | | ??????????????????????????# #???????????????????"" | | +?????????????????????????# #####+##?????????????? | | ???????????????????######## #????????? | | ???????????????????# # ##### #????????? | | ???????????????????#!% p# #????????????????????? | | "?????????"""""????# ss/ #????????????????????? | | "?????????""T""????#! s@###????????????????????? | | ???????????????????# ! #??????????????????????? | | ???????????????????# #??????????????????????? | | ???????????????????########??????????????????????? | | ?????????????????????????????????????????????????? | | ?????????????????????????????????????????????????? | | ???????????????????????????????+?????????????????? | | ?????????????????????????????????????????????????? | | ?????????????????????????????????????????????????? | | ?????????????????????????????????????????????????? | | ?????????????????????????????????????????????????? | | ?????????????????????????????????????????????????? | | ?????????????????????????????????????????????????? | | ????????????????+????????????????????????????????? | | ?????????????????????????????????????????????????? | | ?????????????????????????????????????????????????? | | ?????????????????????????????????????????????????? | | ?????????????????????????????????????????????????? | | ?????????????????????????????????????????????????? | | ?????????????????????????????????????????????????? | | ?????????????????????????????????????????????????? | | ???????????"?"???????????????????????????????????? | | ???????????"T"???????????????????????????????????? | | ???????????"""???????????????????????????????????? | | ?????????????????????????????????????????????????? | +----------------------------------------------------+ Best States ------------- Heat Dissipation 177 Energy Generation 54 Energy Capacity 580 Matter Stores 300 Matter Capacity 300 Sight Range 16 Robot Scan Range 20 Terrain Scan Range 24 Terrain Scan Density 10 ECM Strength 3 Power Amplification 30 Base Temperature (-) 200 EM Shielding 3 Corruption Containment 8 Corruption Block 20 Armor Coverage 825 Resistance: KI 35 Resistance: TH 65 Resistance: EX 35 Resistance: EM 60 Resistance: I 35 Resistance: S 35 Resistance: P 35 Propulsion Shielding 90 Point Defense Rating 160 Weapon Cycling 20 Phase Shifting 10 Evasion (%) 70 Targeting Accuracy 12 Target Analysis 8 Core Analysis 9 Recoil Reduction 6 Matter Filtering 50 Energy Filtering 30 Offensive Hacking 30 Defensive Hacking 14 Authchip Count 2 Item Schematics ----------------- Cargo Storage Unit | -10/Materials | Hacked Sensor Array | -10/Materials | Hacked Huge Storage Unit | -10/Materials | Hacked Datajack | -10/Materials | Hacked Hpw. Shotgun | -9/Recycling | Hacked Pulse Rifle | -9/Recycling | Hacked Spear | -9/Recycling | Hacked Imp. Power Shielding | -9/Recycling | Hacked Imp. Heavy Treads | -6/Factory | Hacked Adv. Plasma Cannon | -6/Factory | Hacked System Restoration Module | -6/Factory | Scanalyzed Mak. System Shield | -6/Factory | Scanalyzed Exp. Sensor Array | -6/Factory | Scanalyzed Component Analysis Suite | -6/Factory | Scanalyzed Adv. Recoil Stabilizer | -6/Factory | Hacked Dynamic Insulation System | -6/Factory | Scanalyzed Hvy. Plasma Cannon | -6/Factory | Hacked Machine Analyzer | -6/Factory | Scanalyzed Antimatter Cannon | -6/Factory | Scanalyzed Adv. Assault Cannon | -6/Factory | Scanalyzed Imp. System Restoration Module | -6/Factory | Hacked Imp. Component Analysis Suite | -6/Factory | Hacked Exp. Targeting Computer | -6/Factory | Scanalyzed Cld. Plasma Cannon | -6/Factory | Scanalyzed EM Shield | -6/Factory | Scanalyzed Cld. Particle Cannon | -6/Factory | Scanalyzed Imp. Arc Projector | -6/Factory | Hacked Combat Drone Bay | -6/Data Miner | Free Lgt. Regenerative Plating | -6/Data Miner | Free Enh. Armored Leg | -6/Data Miner | Free Exp. Heat Sink | -6/Data Miner | Free Enh. Force Rifle | -6/Data Miner | Free Imp. Gyrokinetic Inverter | -6/Data Miner | Free Graphene Brace | -6/Data Miner | Free Railgun | -6/Data Miner | Free Quantum Capacitor | -6/Data Miner | Free Nuclear Pulse Array | -6/Data Miner | Free Hyp. Mass Driver | -6/Data Miner | Free Antigrav Array | -6/Data Miner | Free Adv. Recalibrator | -6/Data Miner | Free Biometal Leg | -5/Factory | Hacked Assault Drone Bay | -5/Zhirov | Free Exp. Optical Array | -5/Zhirov | Free Imp. Arc Thrower | -5/Zhirov | Free Adv. System Restoration Module | -4/Factory | Scanalyzed Adv. System Shield | -4/Factory | Scanalyzed EM Disruption Field | -4/Factory | Scanalyzed 0b10 Decoder Chip [Skirmisher] | -4/Factory | Scanalyzed Triangulator | -4/Factory | Scanalyzed Enh. Quantum Rifle | -4/Factory | Hacked Adv. Variable Charge Gun | -4/Factory | Scanalyzed Hvy. Siege Treads | -4/Factory | Scanalyzed Exp. Cooling System | -4/Factory | Scanalyzed Hvy. Antimatter Reactor | -4/Factory | Scanalyzed Hvy. Neutron Cannon | -4/Factory | Scanalyzed HERF Cannon | -4/Factory | Scanalyzed Adv. Datajack | -4/Factory | Scanalyzed Centrium Leg | -3/Research | Hacked Enh. Hardcell Cannon | -3/Research | Hacked Deep Structural Scanner | -3/Research | Extrapolated Biometal Heavy Treads | -3/Research | Hacked Mak. Heavy Armor Plating | -3/Research | Extrapolated Mak. Terrain Scanner | -3/Research | Extrapolated Mak. Spear | -3/Research | Extrapolated Robot Schematics ------------------ S-10 Pest | -10/Materials | Hacked W-16 Scout | -10/Materials | Hacked G-34 Mercenary | -10/Materials | Hacked A-02 Transporter | -6/Factory | Hacked I-47 Archangel | -6/Data Miner | Free Y-54 Guardian | -6/Data Miner | Free E-15 Imp | -6/Data Miner | Free L-41 Fighter | -6/Data Miner | Free G-50 Soldier | -6/Data Miner | Free B-60 Warrior | -5/Factory | Hacked B-74 Champion | -3/Research | Hacked Fabricated ------------ G-34 Mercenary | x3 | -6/Factory System Restoration Module | x2 | -6/Factory Imp. Heavy Treads | x1 | -6/Factory System Restoration Module | x2 | -6/Factory Huge Storage Unit | x1 | -6/Factory System Restoration Module | x2 | -6/Factory Imp. Heavy Treads | x1 | -6/Factory Imp. Heavy Treads | x1 | -6/Factory Imp. System Restoration Module | x2 | -5/Factory Repaired ---------- Huge Storage Unit | 74% | -6/Factory Imp. Heavy Treads | 65% | -6/Factory Exp. Sensor Array | 62% | -6/Factory Imp. Component Analysis Suite | 70% | -6/Factory Dynamic Insulation System | 59% | -6/Factory Imp. Heavy Treads | 1% | -5/Factory Adv. Power Amplifier | 3% | -4/Factory Hvy. Antimatter Reactor | 42% | -4/Factory Hvy. Neutron Cannon | 47% | -4/Factory | Broken Hvy. Antimatter Reactor | 3% | -4/Factory Exp. Cooling System | 5% | -3/Research Studied --------- None Alien Tech Used ----------------- Integrated Dissipator Transdimensional Reconstructor Achievements -------------- None Challenges ------------ None Game ------ Seed StormAuthchipSystem Manual? 0 Play Time 03:42:53 Cumulative 320.2 hours Start 2026.01.28 @ 10:04:40 End 2026.01.28 @ 14:51:40 Sessions 1 Manual Loads 0 Difficulty Explorer Special Mode None Game No. 499 Rogue 0 Adventurer 0 Explorer 499 Win Type - Total 0 Types 0/0/0/0/0/0/0/0/0/0 Lore% 77 Gallery% 70 Achievement% 56 Wizard Run 0 Options --------- Layout 1 ASCII 0 Keyboard 0 Movement Mouse Keybinds 1 Fullscreen 1 Font 24/Smallcaps Map View 50x35 Zoom Use 0% Tactical HUD 1 Map Filters NONE Filters NONE Steam 1 RUN: 9bf2ee4f-faad-4d72-a7a1-658341c86b00